Cogmind - Beta 16 --- EXPLORER MODE // 2025.11.20 @ 16:40:49 Player: Beosis Result: Smashed by cave-in Performance ------------- Evolutions (0) 0 Regions Visited (1) 200 Robots Destroyed (16) 80 Value Destroyed (298) 298 Prototype IDs (2) 40 Alien Tech Used (0) 0 Bonus (0) 0 TOTAL SCORE: 618 Bonus ------- None Cogmind --------- Core Integrity 0/250 Matter 300/300 Energy 250/250 System Corruption 6% Temperature Cool (0) Movement Walking (120) Location -10/Materials Parts ------- > --- POWER (1) -------- Ion Engine > --- PROPULSION (2) --- Aluminum Leg Aluminum Leg > --- UTILITY (3) ------ Targeting Computer > --- WEAPON (2) ------- Mining Laser > --- INVENTORY (5) ---- Small Storage Unit Sensor Array Sensor Array Utility Shielding Datajack Peak State ------------ > --- POWER ------------ Ion Engine > --- PROPULSION ------- Aluminum Leg Aluminum Leg > --- UTILITY ---------- Structural Scanner Targeting Computer ECM Suite > --- WEAPON ----------- Mining Laser Hammer > --- INVENTORY -------- Small Storage Unit Sensor Array Sensor Array Utility Shielding Datajack [Rating: 8] Favorites ----------- Power Ion Engine Engine Ion Engine Propulsion Aluminum Leg Leg Aluminum Leg Utility Targeting Computer Device ECM Suite Processor Targeting Computer Weapon Hammer Special Weapon Mining Laser Impact Weapon Hammer Build | -11 -10 ------- Run | Yrd Mat Slots Evolved 1 | . 1 Power . | . . Propulsion . | . . Utility 1 | . 1 Weapon . | . . Parts Attached 10 | 5 5 Power 2 | 1 1 Engine 2 | 1 1 Core . | . . Reactor . | . . Propulsion 3 | 2 1 Treads . | . . Leg 3 | 2 1 Wheel . | . . Hover . | . . Flight . | . . Utility 3 | 2 1 Device 2 | 1 1 Storage . | . . Processor 1 | 1 . Hackware . | . . Protection . | . . Artifact . | . . Weapon 2 | . 2 Energy Gun . | . . Energy Cannon . | . . Ballistic Gun . | . . Ballistic Cannon . | . . Launcher . | . . Special Weapon 1 | . 1 Impact Weapon 1 | . 1 Slashing Weapon . | . . Piercing Weapon . | . . Special Melee Weapon . | . . Unidentified Prototypes . | . . Parts Lost 3 | . 3 Power . | . . Propulsion . | . . Utility 2 | . 2 Weapon 1 | . 1 Highest Loss Streak 3 | . 3 To Critical Strikes . | . . Average Backups 3 | . 3 Power . | . . Propulsion . | . . Utility 2 | . 2 Weapon . | . . Tool/Special . | . . Unused Backups 5 | . 5 Power . | . . Propulsion . | . . Utility 4 | . 4 Weapon . | . . Tool/Special 1 | . 1 Average Slot Usage (%) 89 | . 89 Engine 12 | . 12 Leg 25 | . 25 Device 21 | . 21 Processor 12 | . 12 Special Weapon 6 | . 6 Impact Weapon 11 | . 11 Peak Build Rating 8 | 5 8 Average Rating 6 | 3 7 On Entrance 2 | . 5 Avg Prop Armor Cover (%) . | . . Naked Turns . | . . Heaviest Build 11 | 5 11 Greatest Support 20 | 20 20 Greatest Overweight (x) . | . . Average Overweight (x) . | . . Largest Inventory Capacity 5 | 5 5 Average Capacity 5 | 5 5 Most Carried 5 | 1 5 Average Carried 3 | . 3 Final Capacity 5 | 5 5 Final Carried 5 | . 5 Class Distribution -------------------- 100% | Hacker-Mutant Dominant Class ---------------- Hacker-Mutant | -10/Materials Resources | -11 -10 ----------- Run | Yrd Mat Matter Collected 278 | 191 87 Remotely . | . . Salvage Created 580 | . 580 Parts 12 | . 12 Haulers Intercepted 1 | . 1 Recyclers Shooed 1 | . 1 Parts Field Recycled . | . . Retrieved Matter . | . . Parts Self-Destructed . | . . Prevented . | . . Parts Restored . | . . Kills | -11 -10 ------- Run | Yrd Mat Combat Hostiles Destroyed 8 | . 8 Melee 3 | . 3 Classes Destroyed 8 | . 8 Worker 1 | . 1 Builder 2 | . 2 Tunneler 1 | . 1 Hauler 1 | . 1 Recycler 2 | . 2 Watcher 1 | . 1 Swarmer 2 | . 2 Grunt 6 | . 6 Best Kill Streak 3 | . 3 Combat Bots Only 3 | . 3 Max Kills in Single Turn 1 | . 1 Gunslinging . | . . Exploded . | . . Melee 1 | . 1 Uniques/NPCs Destroyed . | . . Combat | -11 -10 -------- Run | Yrd Mat Hostile Shots Fired 41 | . 41 Missed 14 | . 14 Hits 27 | . 27 Projectile 27 | . 27 Damage Taken 762 | . 762 Core 271 | . 271 Absorbed by Shields . | . . Ignored by Resistances 112 | . 112 Core Remaining (%) 100 | 100 . Volleys Fired . | . . Largest . | . . Hottest . | . . Shots Fired . | . . Gun . | . . Cannon . | . . Launcher . | . . Special . | . . Kinetic . | . . Thermal . | . . Explosive . | . . Electromagnetic . | . . Robot Hit Streak . | . . Robot Miss Streak . | . . Penetration Max . | . . Secondary Targets . | . . Shots Hit Robots 29 | . 29 Core Hits 4 | . 4 Critical Kills 1 | . 1 Critical Parts Destroyed 4 | . 4 Critical Strikes 5 | . 5 Smash 5 | . 5 Melee Attacks 44 | . 44 Impact 44 | . 44 Slashing . | . . Piercing . | . . Sneak Attacks 8 | . 8 Combat Hostiles . | . . Follow-up Attacks . | . . Damage Inflicted 1052 | 15 1037 Guns . | . . Cannons . | . . Explosions . | . . Melee 1037 | . 1037 Ramming 15 | 15 . Kinetic . | . . Thermal . | . . Explosive . | . . Electromagnetic . | . . Impact 1037 | . 1037 Slashing . | . . Piercing . | . . Highest Corruption 2 | . 2 Average Corruption 2 | . 2 Corruption Purged . | . . Corruption Blocked . | . . Overload Shots . | . . Overflow Damage 355 | . 355 Projectiles . | . . Explosions . | . . Melee 355 | . 355 Knockbacks 5 | . 5 Impact 5 | . 5 Kinetic . | . . Secondary . | . . Self-Inflicted Damage . | . . Shots . | . . Rammed . | . . Targets Rammed 6 | 6 . Kicked 6 | 6 . Crushed . | . . Highest Temperature . | . . Average Temperature . | . . Received Heat Transfer 123 | . 123 Siege Activations . | . . Martial Activations . | . . Shielding Activations . | . . Robots Disrupted . | . . Combat Hostiles . | . . Robots Corrupted 11 | . 11 Combat Hostiles 5 | . 5 Parts Fried 13 | . 13 Impact Corruptions 20 | . 20 Robots Melted . | . . Combat Hostiles . | . . Parts Melted . | . . Heat Transferred . | . . Parts Sabotaged . | . . Parts Stolen . | . . Parts Stripped . | . . Power Chain Reactions . | . . Alert | -11 -10 ------- Run | Yrd Mat Maximum Alert Level . | . . Low Security (%) 100 | 100 100 Level 1 . | . . Level 2 . | . . Level 3 . | . . Level 4 . | . . Level 5 . | . . High Security . | . . Max Security . | . . Peak Influence 70 | . 70 Initial . | . . Average 8 | . 8 Influence Increases 240 | . 240 Destroy 0b10 Robot/C 160 | . 160 Destroy 0b10 Robot/NC 40 | . 40 Destroy Leader 34 | . 34 Destroy Structure 6 | . 6 Influence Decreases 240 | . 240 Time Decay 237 | . 237 Lost Part 3 | . 3 Squads Dispatched . | . . Investigation . | . . Extermination . | . . Reinforcement . | . . Assault . | . . Garrison . | . . Intercept . | . . Searches Triggered . | . . Construction Impeded . | . . Haulers Reinforced . | . . Active Scanning Responses . | . . Cargo Convoy Interrupts . | . . Stealth | -11 -10 --------- Run | Yrd Mat Distress Signals 1 | . 1 Communications Jammed . | . . Distress Signals . | . . Times Spotted 24 | . 24 Peak Tracking Total 5 | . 5 Tactical Retreats 4 | . 4 ECM-based Alert Blocks 6 | . 6 Traps | -11 -10 ------- Run | Yrd Mat Traps Triggered . | . . Indirectly . | . . Trap Hack Attempts . | . . Triggered . | . . Disarmed . | . . Reprogrammed . | . . Reused . | . . Traps Extracted . | . . Installed . | . . Triggered . | . . Machines | -11 -10 ---------- Run | Yrd Mat Machines Disabled . | . . Max in Single Turn . | . . Machines Repaired . | . . Machines Dismantled . | . . Machines Sabotaged . | . . Overloaded Fab Kills . | . . Hacking | -11 -10 --------- Run | Yrd Mat Machines Accessed 2 | . 2 Terminals 2 | . 2 Fabricators . | . . Repair Stations . | . . Recycling Units . | . . Scanalyzers . | . . Garrison Access . | . . Total Hacks 4 | . 4 Successful 4 | . 4 Failed . | . . Catastrophic . | . . Database Lockouts . | . . Manual . | . . Terminals 4 | . 4 Fabricators . | . . Repair Stations . | . . Recycling Units . | . . Scanalyzers . | . . Garrison Access . | . . Terminal Hacks 4 | . 4 Prototype ID Bank 1 | . 1 Branch Access Points 1 | . 1 Alert Level 1 | . 1 Zone Layout 1 | . 1 Fabricator Hacks . | . . Repair Station Hacks . | . . Recycling Unit Hacks . | . . Scanalyzer . | . . Garrison Access Hacks . | . . Unauthorized Hacks . | . . Terminals . | . . Fabricators . | . . Repair Stations . | . . Recycling Units . | . . Scanalyzers . | . . Garrison Access . | . . Data Cores Recovered . | . . Used . | . . Hacking Detections 1 | . 1 Full Trace Events . | . . Feedback Events . | . . Feedback Blocked . | . . Robot Schematics Acquired . | . . Robots Built . | . . Authchips . | . . Time . | . . Total Robot Build Rating . | . . Part Schematics Acquired . | . . Parts Built . | . . Authchips . | . . Time . | . . Total Part Build Rating . | . . Part Studies Acquired . | . . Parts Repaired . | . . Time . | . . Parts Recycled . | . . Recycled Matter . | . . Retrieved Matter . | . . Retrieved Components . | . . Parts Scanalyzed . | . . Part Schematics Acquired . | . . Parts Damaged . | . . Bothacking | -11 -10 ------------ Run | Yrd Mat Used RIF Installer . | . . Robots Hacked . | . . Non-combat . | . . Combat . | . . Robot Hacks Applied . | . . Relay Couplers Released . | . . Fabnet Peak Effective % . | . . Robots Rewired . | . . Allies Hacked . | . . Hacks Repelled . | . . Allies | -11 -10 -------- Run | Yrd Mat Total Allies . | . . Largest Group . | . . Highest-Rated Group . | . . Highest-Rated Ally . | . . Total Orders . | . . Ally Attacks . | . . Total Damage . | . . Kills . | . . Allies Corrupted . | . . Allies Melted . | . . Intel | -11 -10 ------- Run | Yrd Mat Active Infowar (turns) 896 | 50 846 Structural 640 | . 640 ECM 889 | 50 839 Robot Analysis Total . | . . Derelict Logs Recovered . | . . Drone Launches . | . . Drone Recoveries . | . . Exploration | -11 -10 ------------- Run | Yrd Mat Turns Passed 907 | 62 845 Spaces Moved 551 | 39 512 Core 2 | 2 . Treads . | . . Legs 549 | 37 512 Wheels . | . . Hover . | . . Flight . | . . Fastest Speed 50 | 50 120 Average Speed 119 | 116 120 Slowest Speed 120 | 120 120 Overloaded Moves . | . . Propulsion Burnouts . | . . Robots Hopped . | . . Potential Cave-ins . | . . Cave-ins Triggered 2 | . 2 Exploration Rate (%) 45 | 5 85 Regions Visited 1 Branch Regions . Pre-discovered Areas . | . . Known Exits Taken 1 | 1 . Unknown Exits Taken . | . . Scrap Searched . | . . Spaces Dug 7 | . 7 Terrain Destroyed 7 | . 7 Melee 7 | . 7 Projectile . | . . AOE . | . . Terrain Rammed . | . . Walls Destroyed . | . . Machines Disabled . | . . Actions | -11 -10 --------- Run | Yrd Mat Total 721 | 54 667 Wait 95 | . 95 Move 550 | 38 512 Hop . | . . Pick Up 14 | 5 9 Fast Attach 1 | . 1 Attach 7 | 5 2 Detach . | . . Swap 2 | . 2 Drop 2 | . 2 Fire . | . . Melee 44 | . 44 Ram . | . . Kick 6 | 6 . Crush . | . . Escape Stasis . | . . Rewire . | . . Trap . | . . Miscellaneous . | . . Route ------- -11/Scrapyard -10/Materials (discovered 5 exits: *Mat x3 / *Min x2) History --------- Turn | Location | Event 14 | -11/Scrapyard | Identified exit to Materials 14 | -11/Scrapyard | Discovered exit to Materials (range 15) 63 | -11/Scrapyard | Entered Materials 63 | -10/Materials | Evolved 1 slot: Utility x1 309 | -10/Materials | Build established: Hacker-Mutant 319 | -10/Materials | Identified exit to Materials 319 | -10/Materials | Discovered exit to Materials (range 4) 509 | -10/Materials | Identified exit to Mines 509 | -10/Materials | Discovered exit to Mines (range 10) 593 | -10/Materials | Discovered exit to Materials (range 16) 710 | -10/Materials | Discovered exit to Materials (range 5) 902 | -10/Materials | Crushed by falling debris 902 | -10/Materials | Core integrity fell below 50% 902 | -10/Materials | Core integrity fell below 20% 909 | -10/Materials | Crushed by falling debris 909 | -10/Materials | Smashed by cave-in Last Messages --------------- Destroyed Wheel. T-07 Excavator system corrupted by crushing effect. Imp. Terrain Scanner fried. T-07 Excavator destroyed. K-01 Serf collects debris. U-05 Engineer builds a Wall. K-01 Serf collects debris. U-05 Engineer builds a Wall. The unstable cave ceiling collapses. Crushed by falling debris. ECM Suite destroyed. System corrupted by crushing effect (+2). U-05 Engineer builds a Wall. The unstable cave ceiling collapses. Crushed by falling debris. Hammer destroyed. System corrupted by crushing effect (+2). Structural Scanner destroyed. System corrupted by crushing effect (+2). Map ----- +----------------------------------------------------+ | ## # ##????????????? | | ######+#### ##????????????? | | ### # """ ##????????????? | | ##### + """ ##????????????? | | T # """ ##????????????? | | + ##????????????? | | # """ ##?####???????? | | # """ ############### | | """"" # """ ### # # | | """"" # ### # # | | """"" # """ ### # # | | # """ ### # # | | # """ ### # # | | """"" # ### + # | | """"" ############# # # | | """"" ########## # # | | ##??????## # # | | ######??## + # | | ##+#+######??## # # | | ######## # * ##?### ######### | | ######## # %! ###### ###?????? | | ## #% ##### u ##?????? | | ## # + T ##?????? | | """%## ############## u ##?????? | | """%+ % #;####?????? | | """%#####+########### #@#####????? | | [=### # ! # ########???? | | #########% # + ##???? | | ??????## # """ #/##### ##???? | | ???????## + """ # ## ##???? | | ???????## *% # """ # ##??????? | | ???????## !! # # ##??????? | | ???????################ # ??????? | | ???????################ # ??????? | | ?????????????????????## ##??????? | | ?????????????????????## ##??????? | | ?????????????????????## ##??????? | | ????? ########???????## ##??????? | | ????? ########???????####+###??????? | | ????? # ########## ###??????? | | ??????? """ ########## ####?????? | | ????? # """ # #### #######??? | | ?????## """ # # ##??? | | ?????## + ##??? | | ?????## # # ###??? | | ?????## ![! # ###+#######???? | | ?????## ![! ## ## ###?????? | | ?????## ![! ## ## ????????????? | | ?????#########?## ##?????????????? | | ?????#########?## ##?????????????? | +----------------------------------------------------+ Best States ------------- Heat Dissipation 25 Energy Generation 10 Energy Capacity 250 Matter Stores 300 Matter Capacity 300 Sight Range 16 Terrain Scan Density 10 ECM Strength 1 Resistance: KI 35 Resistance: TH 35 Resistance: EX 35 Resistance: EM 35 Resistance: I 35 Resistance: S 35 Resistance: P 35 Evasion (%) 55 Targeting Accuracy 5 Offensive Hacking 20 Item Schematics ----------------- None Robot Schematics ------------------ None Fabricated ------------ Nothing Repaired ---------- Nothing Studied --------- None Alien Tech Used ----------------- None Achievements -------------- Overwhelming Challenges ------------ None Game ------ Seed WardroneDisintegrationFlail Manual? 0 Play Time 00:07:45 Cumulative 33.4 hours Start 2025.11.20 @ 16:29:05 End 2025.11.20 @ 16:40:49 Sessions 1 Manual Loads 0 Difficulty Explorer Special Mode None Game No. 32 Rogue 16 Adventurer 1 Explorer 15 Win Type - Total 0 Types 0/0/0/0/0/0/0/0/0/0 Lore% 21 Gallery% 25 Achievement% 16 Wizard Run 0 Options --------- Layout 1 ASCII 0 Keyboard 0 Movement Numpad Keybinds 0 Fullscreen 1 Font 24/Smallcaps Map View 50x35 Zoom Use 0% Tactical HUD 0 Map Filters NONE Filters NONE Steam 1 RUN: 06ba5b1b-f1b0-42a9-863b-37f07e3de1a1